bitfinex/quotes_BTCUSD_20250831
["timestamp","ask_amount","ask_price","bid_price","bid_amount"]
[1756634252896,0.18959859,108700.0,108690.0,0.43065515]
[1756634253088,0.18959859,108700.0,108690.0,0.43165515]
[1756634253622,0.18959859,108700.0,108690.0,0.42865515]
[1756634254041,0.18959859,108700.0,108690.0,0.42961515]
[1756634256245,0.18959859,108700.0,108690.0,0.16574001]
[1756634256446,0.18959859,108700.0,108690.0,0.32038001]
[1756634259486,0.19942852,108700.0,108690.0,0.32038001]
[1756634262300,0.00047595,108700.0,108690.0,0.53040839]
[1756634273772,0.00260595,108700.0,108690.0,0.52734839]
[1756634274189,0.00260595,108700.0,108690.0,0.61435806]
[1756634274420,0.00260595,108700.0,108690.0,0.66383406]
[1756634274630,0.00047595,108700.0,108690.0,0.66383406]
[1756634275499,0.18962859,108700.0,108690.0,0.3231645]
[1756634275710,0.18962859,108700.0,108690.0,0.4282885]
[1756634276792,0.18962859,108700.0,108690.0,0.2736885]
[1756634277003,0.18962859,108700.0,108690.0,0.4282885]
[1756634277640,0.18962859,108700.0,108690.0,0.40734968]
[1756634278315,0.18962859,108700.0,108690.0,0.32034001]
[1756634279667,0.18962859,108700.0,108690.0,0.16574001]
[1756634279896,0.18962859,108700.0,108690.0,0.32034001]
[1756634286728,0.18962859,108700.0,108690.0,0.32239001]
[1756634287110,0.18962859,108700.0,108690.0,0.32034001]
[1756634294335,0.52962859,108700.0,108690.0,0.002]
[1756634294556,0.52962859,108700.0,108690.0,0.15692]
[1756634295435,0.52962859,108700.0,108690.0,0.002]
[1756634297174,0.53062859,108700.0,108690.0,0.002]
[1756634297651,0.52400956,108690.0,108680.0,0.23345994]
[1756634297872,0.52916956,108690.0,108680.0,0.23345994]
[1756634299454,0.53116956,108690.0,108680.0,0.07853994]
[1756634300288,0.68600956,108690.0,108680.0,0.07853994]
[1756634300939,0.68596956,108690.0,108680.0,0.07853994]
[1756634302697,0.43643667,108690.0,108680.0,0.07853994]
[1756634302914,0.19116956,108690.0,108680.0,0.07853994]
[1756634303860,0.34592956,108690.0,108680.0,0.07853994]
[1756634305613,0.34596956,108690.0,108680.0,0.07853994]
[1756634307320,0.68596956,108690.0,108680.0,0.07853994]
[1756634308805,0.53116956,108690.0,108680.0,0.07853994]
[1756634309055,0.68592956,108690.0,108680.0,0.07853994]
[1756634315120,0.52404343,108670.0,108660.0,0.0002]
[1756634315550,0.68405343,108670.0,108660.0,0.0002]
[1756634316520,0.68405343,108670.0,108660.0,0.0022]
[1756634316936,0.18406037,108660.0,108650.0,0.15333092]
[1756634317384,0.18406037,108660.0,108650.0,0.15544092]
[1756634318185,0.18410793,108660.0,108650.0,0.15706747]
[1756634318813,0.19388354,108660.0,108650.0,0.15406747]
[1756634318954,0.19388354,108660.0,108650.0,0.15606747]
[1756634319170,0.53388354,108660.0,108650.0,0.15806747]
[1756634319369,0.53388354,108660.0,108650.0,0.15606747]
[1756634319775,0.53388354,108660.0,108650.0,0.15706747]
[1756634320197,0.53598354,108660.0,108650.0,0.00511]
[1756634320403,0.53921354,108660.0,108650.0,0.00511]
[1756634322066,0.35515317,108660.0,108640.0,0.22564]
[1756634322383,0.18407731,108650.0,108640.0,0.31862001]
[1756634322658,0.18407731,108650.0,108640.0,0.32395001]
[1756634323692,0.18407731,108650.0,108640.0,0.32495001]
[1756634324931,0.18407731,108650.0,108640.0,0.25419001]
[1756634325802,0.18407731,108650.0,108640.0,0.25619001]
[1756634326439,0.18407731,108650.0,108640.0,0.25297001]
[1756634327294,0.52940731,108650.0,108640.0,0.09618001]
[1756634327670,0.68085731,108650.0,108640.0,0.09829001]
[1756634328020,0.52940731,108650.0,108640.0,0.09829001]
[1756634328285,0.68416731,108650.0,108640.0,0.09629001]
[1756634328529,0.52940731,108650.0,108640.0,0.09418001]
[1756634328773,0.52617731,108650.0,108640.0,0.25161001]
[1756634328984,0.19388354,108660.0,108640.0,0.25161001]
[1756634328985,0.52410901,108660.0,108640.0,0.49143408]
[1756634329203,0.52410901,108660.0,108650.0,0.28027732]
[1756634329414,0.52410901,108660.0,108650.0,0.28238732]
[1756634329602,0.34004756,108660.0,108650.0,0.28238732]
[1756634329815,0.52410793,108660.0,108650.0,0.28238732]
[1756634331630,0.52610793,108660.0,108650.0,0.28238732]
[1756634332146,0.34204756,108660.0,108650.0,0.35968546]
[1756634332970,0.34004756,108660.0,108650.0,0.38062428]
[1756634333169,0.34204756,108660.0,108650.0,0.38062428]
[1756634333588,4.756e-05,108660.0,108650.0,0.38062428]
[1756634334393,4.756e-05,108660.0,108650.0,0.38262428]
[1756634335149,4.756e-05,108660.0,108650.0,0.38162428]
[1756634335358,4.756e-05,108660.0,108650.0,0.38462428]
[1756634335741,4.756e-05,108660.0,108650.0,0.38362428]
[1756634336149,4.756e-05,108660.0,108650.0,0.38562428]
[1756634336327,0.18410793,108660.0,108650.0,0.38562428]
[1756634336884,0.18410793,108660.0,108650.0,0.54134428]
[1756634337099,0.18410793,108660.0,108650.0,0.38562428]
[1756634337334,4.756e-05,108660.0,108650.0,0.54134428]
[1756634338018,4.756e-05,108660.0,108650.0,0.56913228]
[1756634338637,0.18410793,108660.0,108650.0,0.56913228]
[1756634339259,4.756e-05,108660.0,108650.0,0.56913228]
[1756634339480,0.18410793,108660.0,108650.0,0.56913228]
[1756634339850,0.18410793,108660.0,108650.0,0.41329228]
[1756634340065,0.18410793,108660.0,108650.0,0.56909228]
[1756634340475,0.18608793,108660.0,108650.0,0.56587228]
[1756634341075,0.18410793,108660.0,108650.0,0.56587228]
[1756634341275,0.18410793,108660.0,108650.0,0.56401228]
[1756634341699,0.18410793,108660.0,108650.0,0.56701228]
[1756634341912,0.18410793,108660.0,108650.0,0.56601228]
[1756634342193,4.756e-05,108660.0,108650.0,0.56501228]
[1756634342369,4.756e-05,108660.0,108650.0,0.56701228]
[1756634343714,0.18918793,108660.0,108650.0,0.12364801]
[1756634343917,0.18918793,108660.0,108650.0,0.09598001]
[1756634344127,0.52918793,108660.0,108650.0,0.09598001]
[1756634344329,0.52918793,108660.0,108650.0,0.25170001]
[1756634344534,0.52918793,108660.0,108650.0,0.24870001]
[1756634344953,0.52918793,108660.0,108650.0,0.24970001]
[1756634345367,0.52918793,108660.0,108650.0,0.24870001]
[1756634345569,0.52918793,108660.0,108650.0,0.25173001]
[1756634345776,0.52918793,108660.0,108650.0,0.24650001]
[1756634349861,0.52918793,108660.0,108650.0,0.24447001]
[1756634351627,0.52918793,108660.0,108650.0,0.08875001]
[1756634351840,0.52918793,108660.0,108650.0,0.24427001]
[1756634355675,0.52918793,108660.0,108650.0,0.24630001]
[1756634355880,0.52410793,108660.0,108650.0,0.45131614]
[1756634356093,0.18410793,108660.0,108650.0,0.45445614]
[1756634356325,0.18410793,108660.0,108650.0,0.48212414]
[1756634359168,0.18410793,108660.0,108650.0,0.13938683]
[1756634359169,0.18918793,108660.0,108650.0,0.13938683]
[1756634359389,0.18918793,108660.0,108650.0,0.27177801]
[1756634360481,0.5665111,108660.0,108650.0,0.27177801]
[1756634360838,0.52918793,108660.0,108650.0,0.27177801]
[1756634361045,0.52918793,108660.0,108650.0,0.24411001]
[1756634362527,0.52918793,108660.0,108650.0,0.24611001]
[1756634362721,0.52918793,108660.0,108650.0,0.24411001]
[1756634371097,0.52410793,108660.0,108650.0,0.24611001]
[1756634371317,0.52410793,108660.0,108650.0,0.24932001]
[1756634371950,0.52616793,108660.0,108650.0,0.24611001]
[1756634372160,0.52410793,108660.0,108650.0,0.24611001]
[1756634372578,0.52616793,108660.0,108650.0,0.24611001]
[1756634372803,0.18410793,108660.0,108650.0,0.27025883]
[1756634373037,4.756e-05,108660.0,108650.0,0.45433614]
[1756634373299,4.756e-05,108660.0,108650.0,0.53147914]
[1756634374001,4.756e-05,108660.0,108650.0,0.54088227]
[1756634374472,4.756e-05,108660.0,108650.0,0.58252767]
[1756634374892,4.756e-05,108660.0,108650.0,0.67082399]
[1756634375116,4.756e-05,108660.0,108650.0,0.62917859]
[1756634376585,4.756e-05,108660.0,108650.0,0.46441546]
[1756634376796,4.756e-05,108660.0,108650.0,0.62213546]
[1756634378252,4.756e-05,108660.0,108650.0,0.66446929]
[1756634380660,4.756e-05,108660.0,108650.0,0.66430929]
[1756634382106,4.756e-05,108660.0,108650.0,0.50674929]
[1756634382315,4.756e-05,108660.0,108650.0,0.66422929]
[1756634384845,4.756e-05,108660.0,108650.0,0.67350721]
[1756634385263,4.756e-05,108660.0,108650.0,0.51602721]
[1756634385495,4.756e-05,108660.0,108650.0,0.67338721]
[1756634386223,4.756e-05,108660.0,108650.0,0.66406929]
[1756634386442,4.756e-05,108660.0,108650.0,0.66085929]
[1756634386868,4.756e-05,108660.0,108650.0,0.65985929]
[1756634387064,4.756e-05,108660.0,108650.0,0.66185929]
[1756634387874,4.756e-05,108660.0,108650.0,0.66506929]
[1756634388263,4.756e-05,108660.0,108650.0,0.50774929]
[1756634388465,4.756e-05,108660.0,108650.0,0.66498929]
[1756634388849,4.756e-05,108660.0,108650.0,0.66698929]
[1756634389636,4.756e-05,108660.0,108650.0,0.66694929]
[1756634390254,4.756e-05,108660.0,108650.0,0.66794929]
[1756634393475,4.756e-05,108660.0,108650.0,1.10547329]
[1756634393678,4.756e-05,108660.0,108650.0,1.17143211]
[1756634393924,4.756e-05,108660.0,108650.0,1.37143211]
[1756634394090,4.756e-05,108660.0,108650.0,1.35547329]
[1756634394293,0.26533678,108710.0,108690.0,0.18400956]
[1756634394585,0.60581447,108710.0,108700.0,0.25002001]
[1756634394980,0.60789447,108710.0,108700.0,0.25002001]
[1756634395524,0.61089447,108710.0,108700.0,0.25002001]
[1756634395698,0.53878017,108710.0,108700.0,0.27095883]
[1756634396106,0.53578017,108710.0,108700.0,0.27095883]
[1756634396306,0.54581017,108710.0,108700.0,0.27095883]
[1756634396515,0.54181017,108710.0,108700.0,0.27095883]
[1756634396918,0.54581017,108710.0,108700.0,0.27095883]
[1756634397097,0.54181017,108710.0,108700.0,0.27095883]
[1756634397297,0.54181017,108710.0,108700.0,0.31960515]
[1756634397508,0.54381017,108710.0,108700.0,0.27195883]
[1756634397705,0.54081017,108710.0,108700.0,0.27195883]
[1756634397909,0.54181017,108710.0,108700.0,0.27195883]
[1756634398352,0.54181017,108710.0,108700.0,0.27187883]
[1756634400296,0.53878017,108710.0,108700.0,0.45587147]
[1756634400508,0.53878017,108710.0,108700.0,0.52742006]
[1756634400509,0.00555769,108710.0,108700.0,0.52742006]
[1756634401138,0.00347769,108710.0,108700.0,0.52742006]
[1756634401549,0.00347769,108710.0,108700.0,0.52746006]
[1756634401734,0.00555769,108710.0,108700.0,0.52746006]
[1756634401960,0.00555769,108710.0,108700.0,0.55511406]
[1756634402158,0.00555769,108710.0,108700.0,0.39811406]
[1756634402374,0.00555769,108710.0,108700.0,0.55507406]
[1756634403814,0.00347769,108710.0,108700.0,0.55507406]
[1756634404432,0.1895334,108710.0,108700.0,0.54989406]
[1756634404641,0.1925634,108710.0,108700.0,0.54989406]
[1756634404843,0.1895334,108710.0,108700.0,0.54989406]
[1756634405690,0.1895334,108710.0,108700.0,0.55188406]
[1756634406676,0.1895334,108710.0,108700.0,0.39500406]
[1756634406876,0.1895334,108710.0,108700.0,0.54985406]
[1756634407074,0.1895334,108710.0,108700.0,0.55184406]
[1756634407908,0.00347769,108710.0,108700.0,0.55495406]
[1756634408812,0.00347769,108710.0,108700.0,1.19495406]
[1756634409246,0.00347769,108710.0,108700.0,1.03811406]
[1756634409456,0.00347769,108710.0,108700.0,1.244708]
[1756634409669,0.00047769,108710.0,108700.0,1.037588]
[1756634409895,0.00047769,108710.0,108700.0,1.087588]
[1756634410121,0.00047769,108710.0,108700.0,0.994828]
[1756634410757,0.00047769,108710.0,108700.0,0.944828]
[1756634410973,0.00047769,108710.0,108700.0,0.55935406]
[1756634411197,0.00047769,108710.0,108700.0,0.39811406]
[1756634411416,0.00255769,108710.0,108700.0,0.55535406]
[1756634411663,0.00047769,108710.0,108700.0,0.55935406]
[1756634412048,0.00047769,108710.0,108700.0,0.55835406]
[1756634412493,0.00047769,108710.0,108700.0,0.56035406]
[1756634412883,0.00047769,108710.0,108700.0,0.55735406]
[1756634413331,0.00255769,108710.0,108700.0,0.55731406]
[1756634413548,0.18486436,108730.0,108710.0,0.20491453]
[1756634413766,0.18486436,108730.0,108720.0,0.25018001]
[1756634414194,0.18494436,108730.0,108720.0,0.25018001]
[1756634415276,0.18494436,108730.0,108720.0,0.09298001]
[1756634415500,0.18499436,108730.0,108720.0,0.10014001]
[1756634415734,0.18395879,108720.0,108710.0,0.02108201]
[1756634415916,0.18395879,108720.0,108710.0,0.30282154]
[1756634416121,0.18403879,108720.0,108710.0,0.30282154]
[1756634417459,0.18403879,108720.0,108710.0,0.30593154]
[1756634417989,0.18403879,108720.0,108710.0,0.30693154]
[1756634420116,0.18403879,108720.0,108710.0,0.30382154]
[1756634422648,0.18403879,108720.0,108710.0,0.30699154]
[1756634423127,0.18395879,108720.0,108710.0,0.30895154]
[1756634423966,0.18403879,108720.0,108710.0,0.30895154]
[1756634425234,0.18403879,108720.0,108710.0,0.27727202]
[1756634425877,0.18403879,108720.0,108710.0,0.11506202]
[1756634426079,0.54109942,108720.0,108710.0,0.00114319]
[1756634426290,0.54114942,108720.0,108710.0,0.15786319]
[1756634426692,0.54114942,108720.0,108710.0,0.15782319]
[1756634426932,0.54114942,108720.0,108710.0,0.15682319]
[1756634427165,0.54214942,108720.0,108710.0,0.15682319]
[1756634427590,0.54114942,108720.0,108710.0,0.15682319]
[1756634428214,0.54414942,108720.0,108710.0,0.15682319]
[1756634428428,0.54514942,108720.0,108710.0,0.15682319]
[1756634429108,0.52808879,108720.0,108710.0,0.15682319]
[1756634429268,0.54510481,108720.0,108710.0,0.15682319]
[1756634429913,0.54510343,108720.0,108710.0,0.15682319]
[1756634430719,0.54510343,108720.0,108710.0,0.00014319]
[1756634431353,0.70166343,108720.0,108710.0,0.00014319]
[1756634432795,0.70171343,108720.0,108710.0,0.00014319]
[1756634437163,0.72937443,108720.0,108710.0,0.00014319]
[1756634439732,0.72932443,108720.0,108710.0,0.00014319]
[1756634439941,0.71225979,108720.0,108710.0,0.00014319]
[1756634440142,0.72931051,108720.0,108710.0,0.00014319]
[1756634440516,0.72936051,108720.0,108710.0,0.00014319]
[1756634440728,0.82234052,108720.0,108710.0,0.00014319]
[1756634442765,4.31828252,108720.0,108710.0,0.00014319]
[1756634445821,4.31828252,108720.0,108710.0,0.00114319]
[1756634446079,4.31820252,108720.0,108710.0,0.00114319]
[1756634446655,4.16207252,108720.0,108710.0,0.00114319]
[1756634446862,4.31811252,108720.0,108710.0,0.00114319]
[1756634448477,4.31815252,108720.0,108710.0,0.00114319]
[1756634448679,4.16207252,108720.0,108710.0,0.00114319]
[1756634448899,4.31815252,108720.0,108710.0,0.00114319]
[1756634450747,4.30754869,108720.0,108710.0,0.00114319]
[1756634450959,4.32460707,108720.0,108710.0,0.00114319]
[1756634451166,4.34425714,108720.0,108710.0,0.00114319]
[1756634451372,0.52397571,108710.0,108700.0,0.001]
[1756634451585,4.12261393,108710.0,108700.0,0.00113117]
[1756634451790,4.12269393,108710.0,108700.0,0.00113117]
[1756634451999,0.72477593,108710.0,108700.0,0.00113117]
[1756634453567,0.72677593,108710.0,108700.0,0.00113117]
[1756634454187,0.72677393,108710.0,108700.0,0.00113117]
[1756634454389,0.72777393,108710.0,108700.0,0.00113117]
[1756634457422,4.24633594,108710.0,108700.0,0.00113117]
[1756634457620,4.25273314,108710.0,108700.0,0.00113117]
[1756634459820,4.27238209,108710.0,108700.0,0.00113117]
[1756634461152,4.27238513,108710.0,108700.0,0.00113117]
[1756634461783,4.26598846,108710.0,108700.0,0.00113117]
[1756634461993,4.2723856,108710.0,108700.0,0.00113117]
[1756634462447,4.2024172,108710.0,108700.0,0.00113117]
[1756634465490,4.22206183,108710.0,108700.0,0.00113117]
[1756634465935,4.06606183,108710.0,108700.0,0.00113117]
[1756634466165,4.22162183,108710.0,108700.0,0.00113117]
[1756634468123,4.22167183,108710.0,108700.0,1e-08]
[1756634469255,4.22067183,108710.0,108700.0,1e-08]
[1756634469472,0.52399264,108700.0,108690.0,1e-08]
[1756634469697,4.31188812,108700.0,108690.0,1e-08]
[1756634470178,4.33963812,108700.0,108690.0,1e-08]
[1756634471045,4.34262317,108700.0,108690.0,1e-08]
[1756634471270,4.38359695,108700.0,108690.0,1e-08]
[1756634471933,4.38354695,108700.0,108690.0,1e-08]
[1756634472370,4.39795049,108700.0,108690.0,1e-08]
[1756634472998,4.39995049,108700.0,108690.0,1e-08]
[1756634473288,0.50037862,108700.0,108690.0,0.00527001]
[1756634473516,0.65886902,108700.0,108690.0,0.00527001]
[1756634473750,0.81442902,108700.0,108690.0,0.00527001]
[1756634474192,0.38930548,108700.0,108690.0,0.00527001]
[1756634474405,0.72930548,108700.0,108690.0,0.00527001]
[1756634476920,4.1613587,108700.0,108690.0,1e-08]
[1756634477126,4.32509871,108700.0,108690.0,1e-08]
[1756634477444,4.34477968,108700.0,108690.0,1e-08]
[1756634477851,4.34468968,108700.0,108690.0,0.00323001]
[1756634478058,4.34460968,108700.0,108690.0,0.00527001]
[1756634478448,4.32497871,108700.0,108690.0,0.00527001]
[1756634479186,4.32505871,108700.0,108690.0,0.00527001]
[1756634479394,4.34469532,108700.0,108690.0,0.00527001]
[1756634479760,4.34469532,108700.0,108690.0,0.00323001]
[1756634480800,4.18913532,108700.0,108690.0,0.00323001]
[1756634481004,4.34465532,108700.0,108690.0,0.00323001]
[1756634481204,4.34465532,108700.0,108690.0,0.00537001]
[1756634481415,4.18913532,108700.0,108690.0,0.00537001]
[1756634481569,4.34453532,108700.0,108690.0,0.00537001]
[1756634481775,4.34454385,108700.0,108690.0,0.00537001]
[1756634481981,0.46630523,108700.0,108690.0,0.00537001]
[1756634482189,0.7999118,108700.0,108690.0,0.00537001]
[1756634487333,0.79978484,108700.0,108690.0,0.00537001]
[1756634489177,0.79986484,108700.0,108690.0,1e-08]
[1756634489393,4.31842685,108700.0,108690.0,1e-08]
[1756634489619,4.32482336,108700.0,108690.0,1e-08]
[1756634490739,4.35887472,108700.0,108690.0,1e-08]
[1756634492463,4.35248558,108700.0,108690.0,1e-08]
[1756634492715,4.35888177,108700.0,108690.0,1e-08]
[1756634493138,4.35888182,108700.0,108690.0,1e-08]
[1756634493365,4.35888193,108700.0,108690.0,1e-08]
[1756634493585,4.35893193,108700.0,108690.0,1e-08]
[1756634493969,4.35888193,108700.0,108690.0,1e-08]
[1756634495187,4.34447906,108700.0,108690.0,1e-08]
[1756634498364,4.35893255,108700.0,108690.0,1e-08]
[1756634499587,4.35888255,108700.0,108690.0,1e-08]
[1756634503162,4.35887919,108700.0,108690.0,1e-08]
[1756634503408,4.38342587,108700.0,108690.0,1e-08]
[1756634504605,4.22798587,108700.0,108690.0,1e-08]
[1756634504809,4.35879919,108700.0,108690.0,1e-08]
[1756634506499,4.38334587,108700.0,108690.0,1e-08]
[1756634506681,4.35879919,108700.0,108690.0,1e-08]
[1756634506888,4.35879903,108700.0,108690.0,1e-08]
[1756634511365,0.18406037,108660.0,108650.0,0.0731143]
[1756634511577,0.18406037,108660.0,108650.0,0.16810431]
[1756634512204,0.18406037,108660.0,108650.0,0.09599001]
[1756634512657,0.18406037,108660.0,108650.0,0.0994677]
[1756634513442,0.18406037,108660.0,108650.0,0.1046177]
[1756634513639,0.18406037,108660.0,108650.0,0.10691866]
[1756634516162,0.18406037,108660.0,108650.0,0.1046177]
[1756634517418,0.18406037,108660.0,108650.0,0.10691866]
[1756634517594,0.18405804,108670.0,108650.0,0.33274439]
[1756634517805,0.52405804,108670.0,108660.0,0.28019038]
[1756634518006,0.52405804,108670.0,108660.0,0.28220038]
[1756634519157,0.52405804,108670.0,108660.0,0.09814001]
[1756634519385,0.52405804,108670.0,108660.0,0.10044076]
[1756634519671,0.52405804,108670.0,108660.0,0.10144076]
[1756634520189,0.52405804,108670.0,108660.0,0.12007883]
[1756634520596,0.52405804,108670.0,108660.0,0.3041392]
[1756634520914,0.52405804,108670.0,108660.0,0.18845095]
[1756634521117,0.52405804,108670.0,108660.0,0.27653883]
[1756634526177,0.52603804,108670.0,108660.0,0.00726]
[1756634526781,0.52603804,108670.0,108660.0,0.0021]
[1756634527668,0.52603804,108670.0,108660.0,0.0011]
[1756634528091,0.52603804,108670.0,108660.0,0.0001]
[1756634528645,3.95481004,108670.0,108660.0,0.0001]
[1756634528849,4.0648516,108670.0,108660.0,0.0001]
[1756634529178,4.0925256,108670.0,108660.0,0.0001]
[1756634529801,4.2446956,108670.0,108660.0,0.0001]
[1756634530219,4.2498856,108670.0,108660.0,0.0001]
[1756634530521,4.04558682,108670.0,108660.0,0.0001]
[1756634530652,4.22964486,108670.0,108660.0,0.0001]
[1756634531909,3.97811485,108670.0,108660.0,0.0001]
[1756634532116,0.70789285,108670.0,108660.0,0.0001]
[1756634532329,0.71108285,108670.0,108660.0,0.0001]
[1756634532535,4.13666485,108670.0,108660.0,0.0001]
[1756634533023,4.13466485,108670.0,108660.0,0.0001]
[1756634533236,4.22564486,108670.0,108660.0,0.0001]
[1756634533585,4.22664486,108670.0,108660.0,0.0001]
[1756634534206,4.20958331,108670.0,108660.0,0.0001]
[1756634534421,4.2266328,108670.0,108660.0,0.0001]
[1756634537788,4.22662463,108670.0,108660.0,0.0001]
[1756634540814,4.07126463,108670.0,108660.0,0.0001]
[1756634540978,4.22662463,108670.0,108660.0,0.0001]
[1756634543454,4.07126463,108670.0,108660.0,0.0001]
[1756634543670,4.22662463,108670.0,108660.0,0.0001]
[1756634544860,4.20958331,108670.0,108660.0,0.0001]
[1756634545083,4.22661586,108670.0,108660.0,0.0001]
[1756634547141,4.07125586,108670.0,108660.0,0.0001]
[1756634547351,4.22661586,108670.0,108660.0,0.0001]
[1756634550758,4.22342586,108670.0,108660.0,0.0001]
[1756634550898,4.22644586,108670.0,108660.0,0.0001]
[1756634551116,0.52406037,108660.0,108650.0,1e-08]
[1756634551320,4.34855872,108660.0,108650.0,1e-08]
[1756634551530,4.35069872,108660.0,108650.0,1e-08]
[1756634551781,4.37837872,108660.0,108650.0,1e-08]
[1756634552249,0.52407731,108650.0,108640.0,1e-08]
[1756634552449,4.26623799,108650.0,108640.0,1e-08]
[1756634552793,4.27139799,108650.0,108640.0,1e-08]
[1756634552974,4.29908199,108650.0,108640.0,1e-08]
[1756634553435,4.29908199,108650.0,108610.0,0.00584069]
[1756634553436,0.18412815,108620.0,108610.0,1e-08]
[1756634553653,4.0635503,108620.0,108610.0,1e-08]
[1756634553873,4.0635503,108620.0,108610.0,0.00535001]
[1756634553874,0.52412815,108620.0,108610.0,0.00535001]
[1756634554307,0.1841451,108610.0,108600.0,3.06908501]
[1756634554518,0.1841451,108610.0,108600.0,3.07119501]
[1756634554712,0.18412815,108620.0,108600.0,3.34833708]
[1756634554925,0.18412815,108620.0,108600.0,3.35314065]
[1756634554926,0.00047697,108610.0,108600.0,3.35314065]
[1756634555135,0.00047697,108610.0,108600.0,3.44143697]
[1756634555343,0.18462207,108610.0,108600.0,3.25727491]
[1756634555516,0.18462207,108610.0,108600.0,3.16897859]
[1756634555955,0.18462207,108610.0,108600.0,3.52943947]
[1756634555956,0.00047697,108610.0,108600.0,3.52943947]
[1756634556153,0.00047697,108610.0,108600.0,3.53267947]
[1756634556348,0.00047697,108610.0,108600.0,3.53667947]
[1756634556590,0.00047697,108610.0,108600.0,3.62497579]
[1756634556740,0.00047697,108610.0,108600.0,3.62997579]
[1756634556947,0.00047697,108610.0,108600.0,3.62097579]
[1756634557340,0.00047697,108610.0,108600.0,3.62597579]
[1756634557725,0.00047697,108610.0,108600.0,3.62097579]
[1756634557934,0.00047697,108610.0,108600.0,3.96097579]
[1756634558544,0.00047697,108610.0,108600.0,4.00556992]
[1756634558989,0.00047697,108610.0,108600.0,4.02000992]
[1756634559326,0.00047697,108610.0,108600.0,4.29132992]
[1756634559504,0.00147697,108610.0,108600.0,4.29732992]
[1756634560048,0.00147697,108610.0,108600.0,4.29932992]
[1756634560260,0.00247697,108610.0,108600.0,4.30632992]
[1756634560465,0.00147697,108610.0,108600.0,4.14296992]
[1756634560609,0.00147697,108610.0,108600.0,4.29832992]
[1756634560835,0.00147697,108610.0,108600.0,4.30832992]
[1756634560836,0.00247697,108610.0,108600.0,4.30832992]
[1756634561016,0.00247697,108610.0,108600.0,4.0820311]
[1756634561217,0.18662207,108610.0,108600.0,3.34457859]
[1756634561512,0.18662207,108610.0,108600.0,3.18921859]
[1756634561693,0.18662207,108610.0,108600.0,3.36227741]
[1756634562333,0.18662207,108610.0,108600.0,3.54643947]
[1756634562547,0.18662207,108610.0,108600.0,3.54967947]
[1756634562748,0.18662207,108610.0,108600.0,3.63797579]
[1756634563716,0.00247697,108610.0,108600.0,3.63797579]
[1756634563919,0.00247697,108610.0,108600.0,3.66565679]
[1756634564128,0.00247697,108610.0,108600.0,4.00565679]
[1756634564341,0.00247697,108610.0,108600.0,4.02420679]
[1756634564768,0.00247697,108610.0,108600.0,3.85039679]
[1756634565086,0.00247697,108610.0,108600.0,3.23793841]
[1756634565288,0.18876207,108610.0,108600.0,3.23469841]
[1756634565485,0.19178207,108610.0,108600.0,3.23258841]
[1756634565702,0.19178207,108610.0,108600.0,3.39005841]
[1756634566089,0.18876207,108610.0,108600.0,3.39005841]
[1756634566308,0.18776207,108610.0,108600.0,3.38305841]
[1756634566712,0.18776207,108610.0,108600.0,3.38705841]
[1756634566916,0.18676207,108610.0,108600.0,3.37705841]
[1756634567301,0.18562207,108610.0,108600.0,3.50015679]
[1756634567501,0.18562207,108610.0,108600.0,3.65875679]
[1756634567849,0.18562207,108610.0,108600.0,3.50339679]
[1756634568033,0.18562207,108610.0,108600.0,3.65151679]
[1756634568457,0.18562207,108610.0,108600.0,3.65875679]
[1756634568733,0.00147697,108610.0,108600.0,3.65875679]
[1756634571366,0.18562207,108610.0,108600.0,3.50339679]
[1756634571541,0.00147697,108610.0,108600.0,3.65875679]
[1756634571766,0.18562207,108610.0,108600.0,3.65551679]
[1756634572956,0.00147697,108610.0,108600.0,3.65854679]
[1756634578195,0.00147697,108610.0,108600.0,3.70816438]
[1756634578628,0.00147697,108610.0,108600.0,3.70416438]
[1756634578994,0.00147697,108610.0,108600.0,3.70916438]
[1756634579433,0.00047697,108610.0,108600.0,3.70316438]
[1756634579852,0.00047697,108610.0,108600.0,3.70816438]
[1756634580063,0.00047697,108610.0,108600.0,3.70316438]
[1756634580745,0.18412909,108620.0,108610.0,0.20508392]
[1756634580960,0.19652959,108630.0,108610.0,0.39155781]
[1756634581182,0.19652959,108630.0,108620.0,0.25060161]
[1756634581403,0.26862461,108640.0,108620.0,0.43454816]
[1756634581631,0.19330031,108640.0,108620.0,0.50837816]
[1756634581876,0.19330031,108640.0,108620.0,0.53605316]
[1756634582104,0.19330031,108640.0,108620.0,0.61992198]
[1756634583029,0.19330031,108640.0,108630.0,0.18641259]
[1756634583249,0.19330031,108640.0,108630.0,0.27709121]
[1756634583471,0.19330031,108640.0,108630.0,0.27921121]
[1756634584141,0.18728731,108650.0,108630.0,0.30115003]
[1756634584367,0.18728731,108650.0,108640.0,0.25060118]
[1756634584586,0.18728731,108650.0,108640.0,0.24830001]
[1756634584587,0.18934731,108650.0,108640.0,0.24830001]
[1756634585223,0.18613731,108650.0,108640.0,0.43451426]
[1756634585642,0.18613731,108650.0,108640.0,0.45545308]
[1756634586081,0.18613731,108650.0,108640.0,0.45645308]
[1756634586288,0.18407731,108650.0,108640.0,0.52081251]
[1756634587439,0.53647338,108660.0,108640.0,0.45948308]
[1756634588329,0.53647338,108660.0,108650.0,0.18637827]
[1756634588330,0.19326338,108660.0,108650.0,0.18637827]
[1756634588548,0.19532338,108660.0,108650.0,0.27917732]
[1756634589190,0.19732338,108660.0,108650.0,0.27917732]
[1756634589411,0.19532338,108660.0,108650.0,0.27917732]
[1756634589659,0.19532338,108660.0,108650.0,0.31251605]
[1756634589660,0.20053338,108660.0,108650.0,0.31251605]
[1756634590134,0.19853338,108660.0,108650.0,0.31251605]
[1756634590352,0.19853338,108660.0,108650.0,0.31763605]
[1756634591219,0.19329402,108670.0,108650.0,0.50171336]
[1756634591441,0.19650402,108670.0,108650.0,0.50474336]
[1756634592076,0.19650402,108670.0,108650.0,0.52941236]
[1756634592915,0.18933037,108660.0,108650.0,0.20796387]
[1756634593120,0.18933037,108660.0,108650.0,0.36324387]
[1756634594831,0.18933037,108660.0,108650.0,0.54732118]
[1756634595418,0.18933037,108660.0,108650.0,0.54932118]
[1756634595634,0.18933037,108660.0,108650.0,0.54832118]
[1756634596317,0.18933037,108660.0,108650.0,0.54932118]
[1756634600912,0.19329402,108670.0,108660.0,0.18406037]
[1756634601118,0.19329402,108670.0,108660.0,0.09298001]
[1756634601325,0.19654739,108680.0,108660.0,0.33991025]
[1756634601530,0.53654739,108680.0,108670.0,0.24822001]
[1756634601716,0.53863739,108680.0,108670.0,0.24822001]
[1756634603212,0.54063739,108680.0,108670.0,0.24822001]
[1756634604578,0.54163739,108680.0,108670.0,0.24822001]
[1756634605198,0.55014701,108680.0,108670.0,0.24822001]
[1756634607672,0.54163739,108680.0,108670.0,0.24822001]
[1756634607879,0.55015253,108680.0,108670.0,0.24822001]
[1756634609126,0.20694253,108680.0,108670.0,0.43441344]
[1756634609686,0.20485253,108680.0,108670.0,0.52459664]
[1756634609923,0.01151514,108680.0,108670.0,0.45852226]
[1756634610108,0.003,108680.0,108670.0,0.45852226]
[1756634611207,0.002,108680.0,108670.0,0.45852226]
[1756634611622,0.003,108680.0,108670.0,0.45852226]